bitfinex-derivatives/quotes_SOLF0:USTF0_20230902
["timestamp","ask_amount","ask_price","bid_price","bid_amount"]
[1693638002511,110.57,19.468,19.465,20.4949]
[1693638002718,110.57,19.466,19.465,20.4949]
[1693638003117,110.57,19.466,19.458,15.41]
[1693638003319,110.57,19.465,19.459,19.9253]
[1693638010428,110.57,19.465,19.438,0.22727272]
[1693638010429,110.57,19.46,19.449,15.41]
[1693638010633,110.57,19.454,19.447,15.41]
[1693638012130,110.57,19.453,19.447,15.41]
[1693638014233,110.57,19.463,19.452,110.57]
[1693638014429,110.57,19.463,19.455,15.41]
[1693638014829,110.57,19.463,19.456,21.9891]
[1693638021043,0.45454546,19.473,19.456,21.9891]
[1693638021348,110.57,19.465,19.458,15.41]
[1693638022042,110.57,19.467,19.459,110.57]
[1693638026843,110.57,19.467,19.456,21.9891]
[1693638026844,110.57,19.464,19.458,15.41]
[1693638031947,110.57,19.466,19.459,110.57]
[1693638042048,110.57,19.466,19.458,110.57]
[1693638042254,110.57,19.465,19.458,110.57]
[1693638042849,110.57,19.471,19.464,15.41]
[1693638043352,110.57,19.471,19.466,15.41]
[1693638047163,41.11761683,19.48,19.466,15.41]
[1693638047453,0.45454546,19.482,19.468,110.57]
[1693638047658,110.57,19.474,19.468,110.57]
[1693638048650,110.57,19.474,19.471,0.06186606]
[1693638051456,110.57,19.477,19.471,0.06186606]
[1693638051660,110.57,19.482,19.475,110.57]
[1693638052048,110.57,19.483,19.476,131.1273]
[1693638061257,110.57,19.484,19.477,110.57]
[1693638062061,110.57,19.487,19.479,110.57]
[1693638071981,110.57,19.485,19.478,110.57]
[1693638076582,110.57,19.482,19.476,20.5573]
[1693638089992,110.57,19.479,19.476,20.5573]
[1693638090397,110.57,19.477,19.476,20.5573]
[1693638102099,110.57,19.478,19.476,20.5573]
[1693638108002,110.57,19.477,19.471,0.06186577]
[1693638108306,110.57,19.472,19.471,0.06186577]
[1693638114901,110.57,19.472,19.458,110.57]
[1693638115106,110.57,19.465,19.462,22.0245]
[1693638122018,110.57,19.464,19.462,22.0245]
[1693638131836,110.57,19.464,19.457,110.57]
[1693638132336,110.57,19.464,19.458,20.4936]
[1693638143337,110.57,19.461,19.458,20.4936]
[1693638143542,110.57,19.459,19.451,110.57]
[1693638143742,110.57,19.455,19.448,131.7002]
[1693638144043,110.57,19.455,19.448,110.57]
[1693638144341,110.57,19.455,19.449,21.1302]
[1693638151948,110.57,19.453,19.449,21.1302]
[1693638152445,110.57,19.451,19.449,21.1302]
[1693638160053,110.57,19.451,19.444,110.57]
[1693638160258,110.57,19.445,19.44,21.3049]
[1693638160456,110.57,19.442,19.44,21.3049]
[1693638160760,110.57,19.442,19.435,110.57]
[1693638161061,110.57,19.442,19.436,21.3049]
[1693638162057,110.57,19.443,19.436,131.8749]
[1693638180072,110.57,19.44,19.436,21.3049]
[1693638182071,110.57,19.441,19.436,21.3049]
[1693638186472,540.93778919,19.454,19.437,110.57]
[1693638186473,110.57,19.444,19.437,110.57]
[1693638191974,110.57,19.443,19.436,131.8749]
[1693638202088,110.57,19.444,19.437,110.57]
[1693638203489,110.57,19.445,19.438,110.57]
[1693638205289,110.57,19.443,19.436,131.8749]
[1693638211992,110.57,19.445,19.438,110.57]
[1693638220406,110.57,19.449,19.441,110.57]
[1693638231011,110.57,19.452,19.445,110.57]
[1693638231405,110.57,19.452,19.446,21.9003]
[1693638235914,110.57,19.454,19.447,110.57]
[1693638241915,110.57,19.456,19.449,110.57]
[1693638251919,110.57,19.456,19.447,40.28791772]
[1693638252125,110.57,19.455,19.447,110.57]
[1693638255130,110.57,19.456,19.449,110.57]
[1693638261935,110.57,19.455,19.448,110.57]
[1693638269845,110.57,19.459,19.452,110.57]
[1693638270046,0.45454546,19.458,19.452,110.57]
[1693638270244,0.45454546,19.458,19.453,21.7834]
[1693638272050,0.45454546,19.458,19.454,110.57]
[1693638272351,0.45454546,19.457,19.454,110.57]
[1693638272551,0.45454546,19.461,19.454,110.57]
[1693638275352,110.57,19.459,19.453,21.7834]
[1693638275553,0.45454546,19.458,19.453,21.7834]
[1693638285152,110.57,19.459,19.453,21.7834]
[1693638293766,110.57,19.46,19.453,21.7834]
[1693638301973,0.45454546,19.463,19.453,21.7834]
[1693638301974,110.57,19.457,19.453,21.7834]
[1693638302472,110.57,19.459,19.453,21.7834]
[1693638307674,110.57,19.457,19.453,21.7834]
[1693638312076,110.57,19.456,19.453,21.7834]
[1693638316583,134.15149962,19.458,19.453,21.7834]
[1693638320892,110.57,19.462,19.454,110.57]
[1693638323884,110.57,19.46,19.453,132.3534]
[1693638331395,110.57,19.465,19.458,15.42]
[1693638331796,110.57,19.465,19.459,20.2562]
[1693638331990,41.28263103,19.473,19.461,110.57]
[1693638332297,575.0,19.49,19.459,20.2562]
[1693638332298,110.57,19.472,19.464,110.57]
[1693638332695,110.57,19.472,19.471,0.06186573]
[1693638332996,110.57,19.472,19.471,0.00186573]
[1693638342110,110.57,19.474,19.471,0.00186573]
[1693638344508,110.57,19.472,19.471,0.00186573]
[1693638347517,110.57,19.472,19.465,20.3324]
[1693638348607,110.57,19.472,19.471,0.06186573]
[1693638352018,110.57,19.473,19.471,0.06186573]
[1693638353916,110.57,19.474,19.471,0.06186573]
[1693638356320,110.57,19.477,19.471,0.06186573]
[1693638357327,110.57,19.477,19.471,21.32576573]
[1693638361927,110.57,19.479,19.471,131.89576573]
[1693638362425,110.57,19.479,19.471,131.8339]
[1693638363428,110.57,19.479,19.471,131.89576573]
[1693638372039,110.57,19.477,19.471,21.32576573]
[1693638381048,110.57,19.479,19.472,110.57]
[1693638384046,141.27815356,19.48,19.472,110.57]
[1693638390657,30.70815356,19.48,19.473,110.57]
[1693638392061,141.27815356,19.48,19.472,110.57]
[1693638397361,30.70815356,19.48,19.475,110.57]
[1693638399554,30.70815356,19.48,19.478,110.57]
[1693638399956,30.70815356,19.48,19.479,20.9247]
[1693638402062,30.70815356,19.48,19.479,131.4947]
[1693638402263,30.70815356,19.48,19.479,110.57]
[1693638411066,110.57,19.486,19.479,110.57]
[1693638411267,110.57,19.486,19.48,21.2083]
[1693638411968,110.57,19.488,19.481,110.57]
[1693638413265,151.05459958,19.488,19.481,110.57]
[1693638420971,151.05459958,19.488,19.483,0.78289838]
[1693638422274,110.57,19.486,19.483,0.78289838]
[1693638422575,110.57,19.486,19.483,0.31614234]
[1693638424767,307.29359551,19.493,19.483,0.31614234]
[1693638424964,110.57,19.488,19.483,0.31614234]
[1693638426075,110.57,19.49,19.484,110.57]
[1693638429372,307.29359551,19.493,19.483,0.31614234]
[1693638429373,110.57,19.488,19.483,0.31614234]
[1693638440981,110.57,19.488,19.483,0.37796968]
[1693638442083,110.57,19.49,19.483,110.94796968]
[1693638442477,375.4921696,19.493,19.486,110.57]
[1693638442678,375.94671506,19.493,19.486,110.57]
[1693638442981,375.4921696,19.493,19.487,21.2961]
[1693638443281,375.94671506,19.493,19.487,21.2961]
[1693638445584,111.02454546,19.493,19.487,21.2961]
[1693638449882,110.57,19.493,19.487,21.2961]
[1693638450889,110.57,19.493,19.487,36.6961]
[1693638451984,111.02454546,19.494,19.487,131.8661]
[1693638465399,110.57,19.494,19.487,131.8661]
[1693638474301,0.45454546,19.495,19.489,110.57]
[1693638477306,151.31743325,19.496,19.489,110.57]
[1693638477506,40.74743325,19.496,19.49,110.57]
[1693638477706,0.45454546,19.496,19.49,110.57]
[1693638477903,30.10005956,19.496,19.49,110.57]
[1693638480505,30.10005956,19.496,19.491,0.81982507]
[1693638482005,30.10005956,19.496,19.492,110.57]
[1693638484117,30.10005956,19.496,19.493,20.1769]
[1693638491218,610.57,19.505,19.496,15.39]
[1693638491422,610.57,19.505,19.498,110.57]
[1693638491724,859.07907101,19.505,19.498,110.57]
[1693638491917,610.57,19.505,19.498,110.57]
[1693638492617,652.3473217,19.505,19.498,110.57]
[1693638492815,110.57,19.502,19.495,110.57]
[1693638497325,110.57,19.502,19.496,20.3815]
[1693638506232,151.12823499,19.502,19.496,20.3815]
[1693638522852,110.57,19.501,19.496,20.3815]
[1693638525745,110.57,19.503,19.496,130.9515]
[1693638531855,110.57,19.503,19.496,131.01328611]
[1693638541871,110.57,19.503,19.496,130.9515]
[1693638542171,110.57,19.501,19.496,20.3815]
[1693638547373,110.57,19.501,19.496,20.44328611]
[1693638556581,152.28487178,19.501,19.496,20.44328611]
[1693638557982,110.57,19.501,19.496,35.7615]
[1693638560076,110.57,19.501,19.496,35.82328611]
[1693638562087,110.57,19.501,19.496,20.44328611]
[1693638568192,110.57,19.5,19.496,20.44328611]
[1693638572090,139.4562119,19.502,19.496,35.82328611]
[1693638575697,110.57,19.499,19.496,20.44328611]
[1693638576696,110.57,19.499,19.496,0.06178611]
[1693638582100,110.57,19.497,19.496,0.06178611]
[1693638587699,110.57,19.497,19.489,131.9454]
[1693638589803,110.57,19.497,19.496,0.06178611]
[1693638595006,152.62128204,19.497,19.496,0.06178611]
[1693638597708,110.57,19.497,19.496,0.06178611]
[1693638602013,152.11256409,19.498,19.496,0.06178611]
[1693638602213,110.57,19.498,19.496,0.06178611]
[1693638607420,68.93544266,19.502,19.496,0.06178611]
[1693638607421,110.57,19.497,19.496,0.06178611]
[1693638612022,110.57,19.498,19.496,0.06178611]
[1693638617623,110.57,19.498,19.492,15.51359694]
[1693638617624,110.57,19.498,19.492,15.39]
[1693638619819,110.57,19.498,19.496,0.06178611]
[1693638621927,110.57,19.497,19.496,0.06178611]
[1693638644444,151.16897435,19.497,19.496,0.06178611]
[1693638652048,110.57,19.497,19.496,0.06178611]
[1693638655652,105.5067,19.497,19.496,0.06178611]
[1693638661956,110.57,19.498,19.496,0.06178611]
[1693638691575,110.57,19.498,19.49,110.57]
[1693638692079,110.57,19.498,19.492,15.39]
[1693638696089,110.57,19.498,19.497,0.06178294]
[1693638706293,110.57,19.498,19.492,15.39]
[1693638706694,110.57,19.493,19.489,21.3754]
[1693638708095,42.16299296,19.496,19.472,0.22727272]
[1693638708297,110.57,19.483,19.476,110.57]
[1693638712006,110.57,19.483,19.475,110.57]
[1693638727516,110.57,19.483,19.481,0.30916203]
[1693638741925,110.57,19.482,19.481,0.30916203]
[1693638754825,110.57,19.483,19.481,0.30916203]
[1693638762036,110.57,19.484,19.481,0.30916203]
[1693638782444,110.57,19.484,19.477,110.57]
[1693638785745,110.57,19.484,19.481,0.30916203]
[1693638802771,110.57,19.484,19.481,1.029649]
[1693638803070,111.38899454,19.484,19.481,1.029649]
[1693638811072,0.81899454,19.484,19.481,1.029649]
[1693638844697,111.38899454,19.484,19.481,1.029649]
[1693638852101,110.57,19.482,19.481,1.029649]
[1693638856802,0.81899454,19.484,19.481,1.029649]
[1693638872416,0.81899454,19.484,19.481,0.72048697]
[1693638873619,0.81899454,19.484,19.481,1.029649]
[1693638901941,111.38899454,19.484,19.481,1.029649]
[1693638912051,110.57,19.483,19.481,1.029649]
[1693638922054,0.81899454,19.484,19.481,1.029649]
[1693638939074,110.57,19.482,19.481,1.029649]
[1693638959690,151.66594663,19.482,19.481,1.029649]
[1693638962491,151.66594663,19.482,19.481,0.72048697]
[1693638962892,110.57,19.482,19.481,0.72048697]
[1693638964594,110.57,19.482,19.481,1.02964898]
[1693638992915,0.81899454,19.484,19.481,1.02964898]
[1693638993215,44.3668,19.482,19.481,1.02964898]
[1693638993512,34.27632849,19.49,19.481,1.02964898]
[1693638993813,77.4684,19.482,19.481,1.02964898]
[1693638994212,77.4684,19.482,19.481,0.30916201]
[1693638994413,44.3668,19.482,19.481,0.30916201]
[1693638994711,34.27632849,19.49,19.481,0.30916201]
[1693638995115,110.57,19.485,19.481,0.30916201]
[1693639002721,110.57,19.486,19.481,0.30916201]
[1693639007526,110.57,19.486,19.479,110.57]
[1693639008715,110.57,19.486,19.482,0.06183021]
[1693639025353,20.1551,19.485,19.482,0.06183021]
[1693639030550,0.45454546,19.493,19.485,15.39]
[1693639030551,110.57,19.493,19.485,15.39]
[1693639030762,20.2772,19.492,19.485,15.39]
[1693639031960,20.2772,19.492,19.487,110.57]
[1693639033357,20.2772,19.492,19.489,15.39]
[1693639047676,20.2772,19.492,19.488,110.57]
[1693639052078,20.2772,19.492,19.487,110.57]
[1693639070392,110.57,19.491,19.482,0.06183021]
[1693639070587,110.57,19.485,19.482,0.06183021]
[1693639070789,110.57,19.483,19.482,0.06183021]
[1693639082509,110.57,19.483,19.475,110.57]
[1693639083612,110.57,19.483,19.482,0.06183021]
[1693639086014,110.57,19.485,19.482,0.06183021]
[1693639112032,110.57,19.484,19.482,0.06183021]
[1693639127544,110.57,19.484,19.477,110.57]
[1693639128444,110.57,19.484,19.482,0.06183021]
[1693639158372,110.57,19.483,19.482,0.06183021]
[1693639164268,110.57,19.49,19.482,110.63183021]
[1693639166771,110.57,19.491,19.483,110.57]
[1693639167069,110.57,19.491,19.483,152.9966327]
[1693639172063,130.8472,19.492,19.485,15.4]
[1693639182077,130.8472,19.492,19.485,110.57]
[1693639185875,20.2772,19.492,19.487,15.4]
[1693639196783,20.2772,19.492,19.487,110.57]
[1693639206892,20.2772,19.492,19.49,110.57]
[1693639207192,110.57,19.498,19.49,110.57]
[1693639207385,20.6853,19.497,19.49,110.57]
[1693639208393,110.57,19.505,19.496,110.57]
[1693639208593,20.6853,19.5,19.497,110.57]
[1693639208792,110.57,19.505,19.497,110.57]
[1693639208994,20.6853,19.504,19.497,110.57]
[1693639213997,20.6853,19.504,19.498,110.57]
[1693639214193,20.6853,19.504,19.5,110.57]
[1693639243622,20.6853,19.504,19.497,110.57]
[1693639252032,20.6853,19.504,19.5,110.57]
[1693639257141,20.6853,19.504,19.501,110.57]
[1693639259244,20.6853,19.504,19.502,110.57]
[1693639259739,0.45454546,19.509,19.502,110.57]
[1693639261943,152.49508978,19.51,19.503,110.57]
[1693639267548,110.57,19.51,19.503,110.57]
[1693639268947,0.45454546,19.513,19.506,110.57]
[1693639271541,42.02502212,19.513,19.506,110.57]
[1693639271739,0.45454546,19.512,19.506,110.57]
[1693639271945,111.02454546,19.512,19.505,110.57]
[1693639275252,110.57,19.512,19.505,110.57]
[1693639275857,110.57,19.51,19.502,110.57]
[1693639287073,110.57,19.509,19.501,110.57]
[1693639287479,22.0324,19.508,19.501,110.57]
[1693639291978,132.6024,19.508,19.5,110.57]
[1693639301982,22.0324,19.508,19.502,110.57]
[1693639302788,110.57,19.509,19.503,15.38]
[1693639302987,21.7554,19.512,19.504,110.57]
[1693639304486,110.57,19.511,19.503,110.57]
[1693639331904,110.57,19.511,19.497,40.86109686]
[1693639332111,110.57,19.51,19.503,15.38]
[1693639332511,110.57,19.51,19.502,110.57]
[1693639332715,110.57,19.507,19.5,15.38]
[1693639333111,110.57,19.507,19.499,110.57]
[1693639333308,21.0883,19.506,19.499,110.57]
[1693639342024,131.6583,19.506,19.498,110.57]
[1693639347228,110.57,19.505,19.497,110.57]
[1693639365144,110.57,19.504,19.496,110.57]
[1693639365443,110.57,19.504,19.496,148.28944358]
[1693639371151,21.0883,19.506,19.5,15.38]
[1693639371445,110.57,19.51,19.503,15.38]
[1693639372049,110.57,19.511,19.503,110.57]
[1693639378158,110.57,19.517,19.51,15.38]
[1693639382065,110.57,19.519,19.512,15.38]
[1693639395380,110.57,19.521,19.514,15.38]
[1693639399478,110.57,19.521,19.507,36.96567335]
[1693639399683,110.57,19.518,19.512,15.38]
[1693639404284,110.57,19.518,19.511,110.57]
[1693639405784,110.57,19.516,19.509,15.37]
[1693639406383,20.3427,19.515,19.509,15.37]
[1693639432102,20.3427,19.515,19.509,110.57]
[1693639437608,130.9127,19.515,19.509,15.37]
[1693639452021,20.3427,19.515,19.51,110.57]
[1693639471931,20.3427,19.515,19.509,15.37]
[1693639481340,20.3427,19.515,19.508,110.57]
[1693639481646,110.57,19.512,19.504,110.57]
[1693639498056,130.9127,19.515,19.507,110.57]
[1693639498260,130.9127,19.515,19.507,151.6782018]
[1693639501967,130.9127,19.515,19.509,15.38]
[1693639517073,130.9127,19.515,19.508,110.57]
[1693639521978,110.57,19.513,19.507,41.1082018]
[1693639531984,130.9127,19.515,19.507,151.6782018]
[1693639551993,130.9127,19.515,19.507,41.1082018]
[1693639552190,110.57,19.512,19.503,110.57]
[1693639562004,110.57,19.51,19.503,15.38]
[1693639564206,21.7924,19.509,19.503,15.38]
[1693639575018,110.57,19.51,19.502,110.57]
[1693639577614,110.57,19.51,19.503,15.38]
[1693639603436,110.57,19.509,19.503,15.38]
[1693639655084,110.57,19.506,19.498,110.57]
[1693639655285,110.57,19.504,19.495,110.57]
[1693639662087,110.57,19.501,19.493,110.57]
[1693639672001,110.57,19.5,19.493,110.57]
[1693639678598,110.57,19.5,19.492,110.57]
[1693639682005,110.57,19.499,19.492,15.38]
[1693639684205,20.8608,19.498,19.492,15.38]
[1693639702020,20.8608,19.498,19.492,110.57]
[1693639706919,20.8608,19.498,19.492,15.39]
[1693639738637,131.4308,19.498,19.49,610.57]
[1693639742032,131.4308,19.498,19.492,0.70175902]
[1693639761950,131.4308,19.498,19.494,0.18537382]
[1693639783167,20.8608,19.498,19.494,0.18537382]
[1693639783564,0.06176656,19.502,19.496,110.57]
[1693639783764,110.57,19.506,19.499,610.57]
[1693639784364,110.57,19.51,19.502,110.57]
[1693639792068,110.57,19.51,19.499,500.0]
[1693639792069,110.57,19.51,19.503,110.57]
[1693639793372,110.57,19.51,19.504,15.38]
[1693639798770,110.57,19.511,19.504,15.38]
[1693639803580,21.775,19.512,19.507,15.38]
[1693639804784,21.775,19.512,19.506,110.57]
[1693639805683,21.775,19.512,19.507,110.57]
[1693639807484,500.0,19.536,19.51,15.38]
[1693639807688,110.57,19.52,19.512,110.57]
[1693639809288,110.57,19.523,19.516,15.38]
[1693639809786,110.57,19.524,19.516,110.57]
[1693639812082,130.4146,19.525,19.518,15.38]
[1693639826702,19.8446,19.525,19.515,15.37]
[1693639826892,19.8446,19.525,19.519,110.57]
[1693639835800,19.8446,19.525,19.52,110.57]
[1693639859023,19.8446,19.525,19.521,110.57]
[1693639861924,19.8446,19.525,19.522,110.57]
[1693639872031,19.8446,19.525,19.52,110.57]
[1693639899247,19.8446,19.525,19.522,110.57]
[1693639910056,110.57,19.529,19.522,110.57]
[1693639913753,110.57,19.529,19.525,110.57]
[1693639913959,20.3494,19.53,19.525,110.57]
[1693639921966,20.3494,19.53,19.526,110.57]
[1693639931182,20.3494,19.53,19.529,110.57]
[1693639931682,110.57,19.536,19.529,110.57]
[1693639931879,20.101,19.535,19.529,110.57]
[1693639932083,63.65093698,19.535,19.529,110.57]
[1693639949294,174.22093698,19.535,19.528,110.57]
[1693639960902,174.22093698,19.535,19.529,15.36]
[1693639962099,63.65093698,19.535,19.529,110.57]
[1693639966108,110.57,19.536,19.529,110.57]
[1693639966304,0.45454546,19.539,19.535,15.36]
[1693639966610,110.57,19.541,19.535,15.36]
[1693639968410,110.57,19.541,19.534,110.57]
[1693639972113,21.2678,19.544,19.533,110.57]
[1693639972114,110.57,19.54,19.533,110.57]
[1693639982119,110.57,19.541,19.533,110.57]
[1693639992025,0.12328636,19.542,19.535,110.57]
[1693640001530,110.57,19.54,19.532,110.57]
[1693640001828,0.12328636,19.542,19.527,110.57]
[1693640001829,151.43391751,19.534,19.527,110.57]
[1693640002022,110.57,19.532,19.524,110.57]
[1693640004029,110.57,19.532,19.525,15.36]
[1693640004331,21.039,19.533,19.519,500.0]
[1693640004332,21.039,19.533,19.528,110.57]
[1693640004533,147.95379313,19.535,19.528,110.57]
[1693640017038,111.02454546,19.538,19.532,15.36]
[1693640017237,111.02454546,19.538,19.529,500.0]
[1693640017238,19.8421,19.54,19.535,15.36]
[1693640017735,19.8421,19.54,19.534,110.57]
[1693640022043,130.4121,19.54,19.533,110.57]
[1693640031951,19.8421,19.54,19.535,15.36]
[1693640039846,110.57,19.541,19.535,15.36]
[1693640040155,110.57,19.541,19.534,110.57]
[1693640040156,0.12328636,19.542,19.538,15.35]
[1693640045358,110.57,19.541,19.533,110.57]
[1693640047453,330.92931802,19.559,19.538,500.0]
[1693640047662,110.57,19.552,19.544,15.35]
[1693640047958,110.57,19.552,19.543,110.57]
[1693640048360,110.57,19.549,19.54,110.57]
[1693640051062,110.57,19.543,19.534,110.57]
[1693640051561,21.2881,19.542,19.534,110.57]
[1693640051958,110.57,19.541,19.532,110.57]
[1693640055472,110.57,19.55,19.54,110.57]
[1693640055664,131.8927,19.552,19.543,110.57]
[1693640061871,131.8927,19.552,19.544,110.57]
[1693640083494,110.57,19.551,19.544,110.57]
[1693640092097,21.3227,19.552,19.545,110.57]
[1693640106509,21.3227,19.552,19.546,15.35]
[1693640106809,21.3227,19.552,19.549,15.35]
[1693640112112,21.3227,19.552,19.549,110.57]
[1693640122124,21.3227,19.552,19.55,110.57]
[1693640123924,21.3227,19.552,19.547,110.57]
[1693640142039,21.3227,19.552,19.546,110.57]
[1693640160060,21.3227,19.552,19.546,15.35]
[1693640160962,21.3227,19.552,19.545,110.57]
[1693640161162,110.57,19.551,19.543,110.57]
[1693640161462,150.81653025,19.551,19.543,110.57]
[1693640171967,40.24653025,19.551,19.544,110.57]
[1693640182172,150.81653025,19.551,19.543,110.57]
[1693640191981,110.57,19.55,19.541,110.57]
[1693640194984,110.57,19.55,19.541,110.63164305]
[1693640201988,150.81653025,19.551,19.543,110.57]
[1693640222101,110.57,19.549,19.541,0.06164305]
[1693640225306,40.24653025,19.551,19.543,110.57]
[1693640233306,40.24653025,19.551,19.543,77.5771]
[1693640233509,40.24653025,19.551,19.537,0.12331077]
[1693640233510,110.57,19.544,19.537,0.12331077]
[1693640233812,110.57,19.54,19.537,0.12331077]
[1693640234608,110.57,19.543,19.537,0.12331077]
[1693640234806,110.57,19.547,19.538,110.57]
[1693640235012,0.45454546,19.546,19.538,110.57]
[1693640240322,110.57,19.547,19.538,110.57]
[1693640242019,110.57,19.545,19.538,110.57]
[1693640252425,111.02454546,19.548,19.54,110.57]
[1693640252623,110.57,19.548,19.54,110.57]
[1693640261926,131.2918,19.549,19.543,15.35]
[1693640270030,0.45454546,19.568,19.54,15.35]
[1693640270235,110.57,19.559,19.551,15.35]
[1693640270634,21.7447,19.558,19.551,15.35]
[1693640271137,21.7447,19.558,19.551,110.57]
[1693640272039,21.7447,19.558,19.552,110.57]
[1693640272538,110.57,19.556,19.549,110.57]
[1693640276341,21.7447,19.558,19.552,110.57]
[1693640276835,21.7447,19.558,19.554,15.34]
[1693640279940,110.57,19.562,19.554,15.34]
[1693640280139,110.57,19.565,19.557,125.91]
[1693640280340,21.5503,19.566,19.56,15.34]
[1693640281034,21.5503,19.566,19.561,110.57]
[1693640281236,21.5503,19.566,19.56,15.34]
[1693640282339,21.5503,19.566,19.563,15.34]
[1693640283741,21.5503,19.566,19.56,15.34]
[1693640283742,132.1203,19.566,19.56,15.34]
[1693640283940,132.1203,19.566,19.559,15.34]
[1693640285438,21.5503,19.566,19.56,110.57]
[1693640288940,21.5503,19.566,19.565,15.34]
[1693640290144,77.6038,19.572,19.565,15.34]
[1693640290442,15.28,19.594,19.575,500.0]
[1693640290647,21.6929,19.588,19.584,110.57]
[1693640291143,15.28,19.591,19.584,110.57]
[1693640291346,15.28,19.586,19.578,110.57]
[1693640292046,15.28,19.583,19.576,110.57]
[1693640292244,122.22,19.586,19.573,122.22]
[1693640295244,122.22,19.586,19.574,15.34]
[1693640296446,122.22,19.588,19.577,15.34]
[1693640297446,0.0615168,19.581,19.577,15.34]
[1693640298550,0.0615168,19.581,19.577,15.46305819]
[1693640299750,0.0615168,19.581,19.579,15.34]
[1693640300551,0.0615168,19.581,19.577,0.12305819]
[1693640305346,15.26,19.58,19.577,0.12305819]
[1693640305754,21.6651,19.579,19.573,0.18462422]
[1693640314861,15.26,19.578,19.573,0.18462422]
[1693640326468,15.26,19.578,19.57,15.32]
[1693640327466,0.06152936,19.577,19.57,15.32]
[1693640328467,0.06152936,19.577,19.573,0.12308332]
[1693640342284,110.14152936,19.577,19.573,0.12308332]
[1693640342887,110.08,19.574,19.569,0.18466193]
[1693640344492,110.08,19.574,19.57,15.33]
[1693640347395,137.62,19.576,19.57,15.33]
[1693640348084,21.5398,19.575,19.57,15.33]
[1693640351292,21.5398,19.575,19.569,0.18466193]
[1693640353299,15.27,19.574,19.569,0.18466193]
[1693640367404,110.13,19.573,19.569,0.18466193]
[1693640370006,15.27,19.572,19.569,0.18466193]
[1693640371610,15.27,19.572,19.565,110.13]
[1693640372005,110.13,19.571,19.565,15.33]
[1693640372712,110.13,19.571,19.569,0.7302492]
[1693640373711,110.13,19.571,19.569,0.85335767]
[1693640430856,110.13,19.57,19.569,0.85335767]
[1693640431459,110.13,19.57,19.569,0.7302492]
[1693640433557,110.13,19.57,19.569,0.85335767]
[1693640441471,15.27,19.569,19.565,0.18469965]
[1693640441672,110.13,19.567,19.565,0.18469965]
[1693640441971,110.13,19.566,19.565,0.18469965]
[1693640447671,15.27,19.564,19.561,0.24631548]
[1693640447877,110.13,19.563,19.561,0.24631548]
[1693640448580,110.13,19.563,19.556,110.13]
[1693640450675,110.13,19.563,19.556,151.90414408]
[1693640452379,110.13,19.563,19.561,0.18473737]